[Event "*** SCC Grand Prix: Titled Tuesday Blitz"]
[Site "Chess.com"]
[Date "2020.07.14"]
[Round "5"]
[White "CzechmVIII"]
[Black "ace_mar"]
[Result "0-1"]
[WhiteElo "2200"]
[BlackElo "2451"]
[TimeControl "180+1"]
[EndTime "10:55:59 PDT"]
[Termination "ace_mar won on time"]

1. e4 {[%clk 0:02:56.2]} 1... e5 {[%clk 0:02:52.5]} 2. Nf3 {[%clk 0:02:56.1]}
2... Nc6 {[%clk 0:02:52.7]} 3. Bb5 {[%clk 0:02:56.1]} 3... a6 {[%clk 0:02:52.4]}
4. Ba4 {[%clk 0:02:56.4]} 4... Nf6 {[%clk 0:02:51]} 5. O-O {[%clk 0:02:56.3]}
5... Be7 {[%clk 0:02:51.3]} 6. Re1 {[%clk 0:02:55.7]} 6... b5 {[%clk 0:02:51.7]}
7. Bb3 {[%clk 0:02:56.1]} 7... d6 {[%clk 0:02:52]} 8. c3 {[%clk 0:02:55.7]} 8...
O-O {[%clk 0:02:52.3]} 9. h3 {[%clk 0:02:55.7]} 9... Nb8 {[%clk 0:02:52.7]} 10.
d4 {[%clk 0:02:54.8]} 10... Nbd7 {[%clk 0:02:53.2]} 11. Nbd2 {[%clk 0:02:54.4]}
11... Bb7 {[%clk 0:02:52.2]} 12. Bc2 {[%clk 0:02:54.6]} 12... Re8 {[%clk
0:02:52.5]} 13. a4 {[%clk 0:02:51.9]} 13... c5 {[%clk 0:02:52.1]} 14. d5 {[%clk
0:02:45.2]} 14... c4 {[%clk 0:02:50]} 15. b3 {[%clk 0:02:45.4]} 15... cxb3
{[%clk 0:02:46.3]} 16. Bxb3 {[%clk 0:02:39.1]} 16... Nc5 {[%clk 0:02:45.2]} 17.
Bc2 {[%clk 0:02:21.5]} 17... Bf8 {[%clk 0:02:44.8]} 18. axb5 {[%clk 0:02:15]}
18... axb5 {[%clk 0:02:45.7]} 19. Rxa8 {[%clk 0:02:13.4]} 19... Qxa8 {[%clk
0:02:46.6]} 20. Nb3 {[%clk 0:02:10.2]} 20... Na4 {[%clk 0:02:36]} 21. Bd2 {[%clk
0:01:57.5]} 21... Rc8 {[%clk 0:02:35.5]} 22. Qa1 {[%clk 0:01:33.5]} 22... b4
{[%clk 0:02:28.4]} 23. c4 {[%clk 0:01:12.2]} 23... Rxc4 {[%clk 0:02:22.9]} 24.
Bd3 {[%clk 0:01:11.1]} 24... Rc8 {[%clk 0:02:02.8]} 25. Bxb4 {[%clk 0:01:10.9]}
25... Nb6 {[%clk 0:01:48.6]} 26. Na5 {[%clk 0:01:02.1]} 26... Ba6 {[%clk
0:01:43.3]} 27. Bxa6 {[%clk 0:00:56.5]} 27... Qxa6 {[%clk 0:01:44.2]} 28. Nc6
{[%clk 0:00:56.8]} 28... Qc4 {[%clk 0:01:37.2]} 29. Qa5 {[%clk 0:00:37.1]} 29...
Nbxd5 {[%clk 0:00:37.8]} 30. exd5 {[%clk 0:00:29.3]} 30... Nxd5 {[%clk
0:00:32.1]} 31. Nfxe5 {[%clk 0:00:16.9]} 31... dxe5 {[%clk 0:00:27.4]} 32. Bxf8
{[%clk 0:00:12]} 32... Qxc6 {[%clk 0:00:26.4]} 33. Ba3 {[%clk 0:00:08.5]} 33...
Ra8 {[%clk 0:00:23.9]} 0-1

[Event "*** SCC Grand Prix: Titled Tuesday Blitz"]
[Site "Chess.com"]
[Date "2020.07.14"]
[Round "5"]
[White "Forantes"]
[Black "louis198"]
[Result "1/2-1/2"]
[WhiteElo "2361"]
[BlackElo "2550"]
[TimeControl "180+1"]
[EndTime "10:55:59 PDT"]
[Termination "Game drawn by repetition"]

1. Nf3 {[%clk 0:03:00.9]} 1... d5 {[%clk 0:02:58.9]} 2. g3 {[%clk 0:03:00.4]}
2... g6 {[%clk 0:02:58.3]} 3. Bg2 {[%clk 0:03:00.7]} 3... Bg7 {[%clk 0:02:57.8]}
4. d4 {[%clk 0:03:01.1]} 4... e6 {[%clk 0:02:57.9]} 5. O-O {[%clk 0:03:01.7]}
5... Ne7 {[%clk 0:02:58.4]} 6. c4 {[%clk 0:03:02.2]} 6... O-O {[%clk 0:02:58.1]}
7. Nc3 {[%clk 0:03:02.8]} 7... Nbc6 {[%clk 0:02:55.9]} 8. cxd5 {[%clk
0:02:29.1]} 8... exd5 {[%clk 0:02:55.4]} 9. Bf4 {[%clk 0:02:27.5]} 9... a6
{[%clk 0:02:54.3]} 10. e3 {[%clk 0:02:14.9]} 10... f6 {[%clk 0:02:33.1]} 11. h4
{[%clk 0:02:02]} 11... Kh8 {[%clk 0:02:28.9]} 12. Kh2 {[%clk 0:01:29.2]} 12...
Be6 {[%clk 0:02:20.1]} 13. Rc1 {[%clk 0:01:28.3]} 13... Nf5 {[%clk 0:02:19.6]}
14. Na4 {[%clk 0:01:21.2]} 14... Nd6 {[%clk 0:02:16.8]} 15. Nc5 {[%clk
0:01:18.5]} 15... Bc8 {[%clk 0:02:16.6]} 16. Qb3 {[%clk 0:01:09.6]} 16... Ne7
{[%clk 0:02:15.6]} 17. Bxd6 {[%clk 0:00:57.3]} 17... Qxd6 {[%clk 0:01:54.3]} 18.
Nxb7 {[%clk 0:00:57.3]} 18... Bxb7 {[%clk 0:01:55.2]} 19. Qxb7 {[%clk
0:00:57.9]} 19... c6 {[%clk 0:01:55.9]} 20. Qb3 {[%clk 0:00:50.4]} 20... Rfb8
{[%clk 0:01:52.9]} 21. Qc3 {[%clk 0:00:50.6]} 21... Rb7 {[%clk 0:01:49.8]} 22.
b4 {[%clk 0:00:50.9]} 22... Rxb4 {[%clk 0:01:48]} 23. Rb1 {[%clk 0:00:43]} 23...
Rab8 {[%clk 0:01:44.2]} 24. Rxb4 {[%clk 0:00:41]} 24... Qxb4 {[%clk 0:01:44.3]}
25. Rc1 {[%clk 0:00:36.6]} 25... Qxc3 {[%clk 0:01:33.5]} 26. Rxc3 {[%clk
0:00:37.5]} 26... Rb2 {[%clk 0:01:33.9]} 27. Ra3 {[%clk 0:00:27]} 27... Rxf2
{[%clk 0:01:33.7]} 28. Rxa6 {[%clk 0:00:27.4]} 28... Kg8 {[%clk 0:01:33.5]} 29.
Kg1 {[%clk 0:00:26.2]} 29... Re2 {[%clk 0:01:33.6]} 30. Bh3 {[%clk 0:00:24.4]}
30... Rxe3 {[%clk 0:01:25.7]} 31. Kf2 {[%clk 0:00:24.8]} 31... Bh6 {[%clk
0:01:25.9]} 32. Ng5 {[%clk 0:00:11.7]} 32... Rd3 {[%clk 0:01:08.9]} 33. Ra8+
{[%clk 0:00:11.8]} 33... Kg7 {[%clk 0:01:05.1]} 34. Ne6+ {[%clk 0:00:12]} 34...
Kf7 {[%clk 0:01:04.9]} 35. Nd8+ {[%clk 0:00:12.2]} 35... Kg7 {[%clk 0:00:50.1]}
36. Ra7 {[%clk 0:00:12.2]} 36... Kf8 {[%clk 0:00:45.6]} 37. Ne6+ {[%clk
0:00:09.8]} 37... Ke8 {[%clk 0:00:45.9]} 38. Ra8+ {[%clk 0:00:09]} 38... Kf7
{[%clk 0:00:45.5]} 39. Nd8+ {[%clk 0:00:09.2]} 39... Kg7 {[%clk 0:00:45.2]} 40.
Ne6+ {[%clk 0:00:09.2]} 40... Kf7 {[%clk 0:00:44.2]} 1/2-1/2

[Event "*** SCC Grand Prix: Titled Tuesday Blitz"]
[Site "Chess.com"]
[Date "2020.07.14"]
[Round "5"]
[White "AttilaTurzo"]
[Black "HanSchut"]
[Result "1-0"]
[WhiteElo "2487"]
[BlackElo "2331"]
[TimeControl "180+1"]
[EndTime "10:55:59 PDT"]
[Termination "AttilaTurzo won on time"]

1. e4 {[%clk 0:03:00.9]} 1... c5 {[%clk 0:02:59.7]} 2. Nf3 {[%clk 0:03:01.1]}
2... d6 {[%clk 0:03:00.3]} 3. d4 {[%clk 0:03:02]} 3... cxd4 {[%clk 0:03:01.2]}
4. Nxd4 {[%clk 0:03:02.9]} 4... Nf6 {[%clk 0:03:01.5]} 5. Nc3 {[%clk 0:03:03.5]}
5... a6 {[%clk 0:03:02.3]} 6. Bg5 {[%clk 0:03:03.8]} 6... e6 {[%clk 0:03:03.1]}
7. f4 {[%clk 0:03:04.4]} 7... Be7 {[%clk 0:03:02.9]} 8. Qf3 {[%clk 0:03:04.8]}
8... h6 {[%clk 0:03:03.7]} 9. Bh4 {[%clk 0:03:02]} 9... g5 {[%clk 0:03:03.6]}
10. fxg5 {[%clk 0:02:58.9]} 10... Nfd7 {[%clk 0:03:03.7]} 11. Qh5 {[%clk
0:02:57.4]} 11... Ne5 {[%clk 0:03:02]} 12. O-O-O {[%clk 0:02:43.7]} 12... Ng6
{[%clk 0:02:56.6]} 13. Bg3 {[%clk 0:02:34.7]} 13... hxg5 {[%clk 0:02:51]} 14.
Qe2 {[%clk 0:02:29.5]} 14... Qc7 {[%clk 0:02:41]} 15. Kb1 {[%clk 0:02:27.9]}
15... Nd7 {[%clk 0:02:39.9]} 16. Qd2 {[%clk 0:01:55.2]} 16... Nde5 {[%clk
0:02:33.7]} 17. Nf3 {[%clk 0:01:53.5]} 17... Bd7 {[%clk 0:02:27.2]} 18. Nxg5
{[%clk 0:01:51.1]} 18... O-O-O {[%clk 0:01:57.5]} 19. Nf3 {[%clk 0:01:47.2]}
19... Kb8 {[%clk 0:01:49.8]} 20. Be2 {[%clk 0:01:46.6]} 20... b5 {[%clk
0:01:33.5]} 21. a3 {[%clk 0:01:35.4]} 21... Bc6 {[%clk 0:01:17.2]} 22. Bf2
{[%clk 0:01:26.5]} 22... Qb7 {[%clk 0:01:10.7]} 23. Bd3 {[%clk 0:01:21.9]} 23...
Rc8 {[%clk 0:00:47.9]} 24. Nd4 {[%clk 0:01:21.1]} 24... Bd7 {[%clk 0:00:39.5]}
25. Nb3 {[%clk 0:01:19.9]} 25... Bd8 {[%clk 0:00:27.2]} 26. h3 {[%clk
0:01:18.7]} 26... Nc4 {[%clk 0:00:15.1]} 27. Bxc4 {[%clk 0:01:02.8]} 27... bxc4
{[%clk 0:00:16]} 28. Qxd6+ {[%clk 0:01:03]} 28... Bc7 {[%clk 0:00:12.8]} 29.
Qxd7 {[%clk 0:01:02.9]} 29... cxb3 {[%clk 0:00:13.2]} 30. Qxf7 {[%clk
0:00:55.1]} 30... bxc2+ {[%clk 0:00:13.1]} 31. Kxc2 {[%clk 0:00:56]} 31... Ne5
{[%clk 0:00:05.8]} 32. Qxe6 {[%clk 0:00:54.1]} 32... Ka8 {[%clk 0:00:06.5]} 33.
Qd5 {[%clk 0:00:47.7]} 33... Nc6 {[%clk 0:00:05.5]} 34. Kb1 {[%clk 0:00:46.2]}
34... Rhd8 {[%clk 0:00:04.5]} 35. Qf7 {[%clk 0:00:42.6]} 35... Nd4 {[%clk
0:00:02.7]} 36. Bxd4 {[%clk 0:00:39.5]} 1-0

[Event "*** SCC Grand Prix: Titled Tuesday Blitz"]
[Site "Chess.com"]
[Date "2020.07.14"]
[Round "5"]
[White "sergoy"]
[Black "PSvidler"]
[Result "1/2-1/2"]
[WhiteElo "2814"]
[BlackElo "2980"]
[TimeControl "180+1"]
[EndTime "10:56:04 PDT"]
[Termination "Game drawn by agreement"]

1. e4 {[%clk 0:03:00.1]} 1... c5 {[%clk 0:02:57.9]} 2. Nf3 {[%clk 0:03:00.1]}
2... d6 {[%clk 0:02:55.7]} 3. Bb5+ {[%clk 0:02:56]} 3... Nd7 {[%clk 0:02:53.2]}
4. d4 {[%clk 0:02:55.5]} 4... cxd4 {[%clk 0:02:52.4]} 5. Qxd4 {[%clk 0:02:56.4]}
5... a6 {[%clk 0:02:50.1]} 6. Bxd7+ {[%clk 0:02:56.2]} 6... Bxd7 {[%clk
0:02:50.1]} 7. Nc3 {[%clk 0:02:56.2]} 7... Rc8 {[%clk 0:02:47.2]} 8. O-O {[%clk
0:02:55.5]} 8... e5 {[%clk 0:02:45.5]} 9. Qd3 {[%clk 0:02:55.2]} 9... h6 {[%clk
0:02:45.4]} 10. Rd1 {[%clk 0:02:48.1]} 10... Nf6 {[%clk 0:02:44.1]} 11. Nd2
{[%clk 0:02:40.4]} 11... Be6 {[%clk 0:02:33]} 12. a4 {[%clk 0:02:36.4]} 12...
Be7 {[%clk 0:02:22.3]} 13. Nf1 {[%clk 0:02:35.8]} 13... O-O {[%clk 0:02:21.3]}
14. Ne3 {[%clk 0:02:35.7]} 14... Qc7 {[%clk 0:02:20]} 15. Bd2 {[%clk 0:02:35.6]}
15... Rfd8 {[%clk 0:02:05.9]} 16. Ncd5 {[%clk 0:02:35.3]} 16... Nxd5 {[%clk
0:01:53.5]} 17. exd5 {[%clk 0:02:36.2]} 17... Bd7 {[%clk 0:01:53.6]} 18. a5
{[%clk 0:02:35.4]} 18... Bg5 {[%clk 0:01:52]} 19. Rdc1 {[%clk 0:02:28.2]} 19...
f5 {[%clk 0:01:47.1]} 20. c4 {[%clk 0:01:50.6]} 20... e4 {[%clk 0:01:38]} 21.
Qc2 {[%clk 0:01:40.1]} 21... f4 {[%clk 0:01:36.6]} 22. Nf1 {[%clk 0:01:40.1]}
22... Re8 {[%clk 0:01:32.2]} 23. h4 {[%clk 0:01:38.1]} 23... Bxh4 {[%clk
0:00:54.3]} 24. Bxf4 {[%clk 0:01:37.8]} 24... Rf8 {[%clk 0:00:53.9]} 25. Be3
{[%clk 0:01:37.3]} 25... Bf5 {[%clk 0:00:52.9]} 26. Ng3 {[%clk 0:01:18.8]} 26...
Bg6 {[%clk 0:00:52]} 27. Qe2 {[%clk 0:01:01.6]} 27... Qd7 {[%clk 0:00:51.3]} 28.
b4 {[%clk 0:01:01.7]} 28... Rce8 {[%clk 0:00:50.2]} 29. c5 {[%clk 0:00:56.7]}
29... dxc5 {[%clk 0:00:50.4]} 30. Rxc5 {[%clk 0:00:55.8]} 30... Re5 {[%clk
0:00:49.1]} 31. b5 {[%clk 0:00:52]} 31... Rxd5 {[%clk 0:00:46.6]} 32. Rxd5
{[%clk 0:00:48.9]} 32... Qxd5 {[%clk 0:00:46.2]} 33. bxa6 {[%clk 0:00:49.1]}
33... bxa6 {[%clk 0:00:44.6]} 34. Qxa6 {[%clk 0:00:47.9]} 34... Kh7 {[%clk
0:00:41.6]} 35. Qe2 {[%clk 0:00:35.4]} 35... Qd3 {[%clk 0:00:40.2]} 36. Qxd3
{[%clk 0:00:33.3]} 36... exd3 {[%clk 0:00:40.2]} 37. a6 {[%clk 0:00:33.5]} 37...
Bf6 {[%clk 0:00:39.1]} 38. Ra5 {[%clk 0:00:29.2]} 38... Bd4 {[%clk 0:00:38.4]}
39. Nf1 {[%clk 0:00:26.4]} 39... Bxe3 {[%clk 0:00:34]} 40. Nxe3 {[%clk
0:00:24.9]} 40... d2 {[%clk 0:00:33.8]} 41. Rd5 {[%clk 0:00:18.7]} 41... Ra8
{[%clk 0:00:33.5]} 1/2-1/2

[Event "*** SCC Grand Prix: Titled Tuesday Blitz"]
[Site "Chess.com"]
[Date "2020.07.14"]
[Round "5"]
[White "GM_LOADING"]
[Black "Jospem"]
[Result "0-1"]
[WhiteElo "2576"]
[BlackElo "2813"]
[TimeControl "180+1"]
[EndTime "10:56:04 PDT"]
[Termination "Jospem won by resignation"]

1. e4 {[%clk 0:03:00.9]} 1... c5 {[%clk 0:02:42.5]} 2. Nf3 {[%clk 0:03:00.9]}
2... d6 {[%clk 0:02:39.9]} 3. d4 {[%clk 0:03:01.4]} 3... cxd4 {[%clk 0:02:37.1]}
4. Nxd4 {[%clk 0:03:02.3]} 4... Nf6 {[%clk 0:02:33.3]} 5. Nc3 {[%clk 0:03:02.7]}
5... a6 {[%clk 0:02:29.3]} 6. Be2 {[%clk 0:02:50.8]} 6... e5 {[%clk 0:02:19.5]}
7. Nf3 {[%clk 0:02:49.2]} 7... Be7 {[%clk 0:02:16.4]} 8. Bg5 {[%clk 0:02:48.5]}
8... Nbd7 {[%clk 0:02:13.3]} 9. a4 {[%clk 0:02:47.1]} 9... h6 {[%clk 0:02:12.7]}
10. Bh4 {[%clk 0:02:46.4]} 10... g5 {[%clk 0:02:10.3]} 11. Bg3 {[%clk
0:02:46.2]} 11... Nc5 {[%clk 0:02:10.4]} 12. Nd2 {[%clk 0:02:44.6]} 12... Be6
{[%clk 0:02:10]} 13. h4 {[%clk 0:01:57.5]} 13... Rg8 {[%clk 0:01:42.8]} 14. hxg5
{[%clk 0:01:56.8]} 14... hxg5 {[%clk 0:01:43.7]} 15. b4 {[%clk 0:00:40.2]} 15...
Ncd7 {[%clk 0:01:38.6]} 16. Nc4 {[%clk 0:00:39.8]} 16... Rc8 {[%clk 0:01:29.9]}
17. Nd5 {[%clk 0:00:33.8]} 17... Nxe4 {[%clk 0:01:17]} 18. Bh2 {[%clk
0:00:19.7]} 18... Ndf6 {[%clk 0:00:50.7]} 19. Nxf6+ {[%clk 0:00:15.8]} 19...
Nxf6 {[%clk 0:00:47]} 20. Ne3 {[%clk 0:00:14.9]} 20... Qc7 {[%clk 0:00:40.1]}
21. c4 {[%clk 0:00:14.4]} 21... g4 {[%clk 0:00:35.8]} 22. Bg3 {[%clk 0:00:14.2]}
22... Ne4 {[%clk 0:00:33.6]} 23. Bh4 {[%clk 0:00:13]} 23... g3 {[%clk
0:00:26.8]} 24. fxg3 {[%clk 0:00:05.1]} 24... Qb6 {[%clk 0:00:24.6]} 25. Qd3
{[%clk 0:00:02.9]} 25... Qxb4+ {[%clk 0:00:23.8]} 26. Kf1 {[%clk 0:00:03]} 26...
Nxg3+ {[%clk 0:00:12.4]} 27. Bxg3 {[%clk 0:00:03]} 27... Rxg3 {[%clk 0:00:13.3]}
28. Rh8+ {[%clk 0:00:03.4]} 28... Bf8 {[%clk 0:00:13.9]} 29. Rg8 {[%clk
0:00:03.3]} 29... Rxg8 {[%clk 0:00:13.5]} 0-1

[Event "*** SCC Grand Prix: Titled Tuesday Blitz"]
[Site "Chess.com"]
[Date "2020.07.14"]
[Round "5"]
[White "Timerkhanov"]
[Black "ellatambien"]
[Result "0-1"]
[WhiteElo "2590"]
[BlackElo "2497"]
[TimeControl "180+1"]
[EndTime "10:56:04 PDT"]
[Termination "ellatambien won by resignation"]

1. d4 {[%clk 0:03:00.9]} 1... Nf6 {[%clk 0:02:58.4]} 2. Bg5 {[%clk 0:03:01.3]}
2... Ne4 {[%clk 0:02:47.1]} 3. Bf4 {[%clk 0:03:01]} 3... c5 {[%clk 0:02:46.2]}
4. f3 {[%clk 0:03:01]} 4... Qa5+ {[%clk 0:02:40.2]} 5. c3 {[%clk 0:03:01.1]}
5... Nf6 {[%clk 0:02:39.7]} 6. d5 {[%clk 0:03:01.2]} 6... Nh5 {[%clk 0:02:30.2]}
7. Bc1 {[%clk 0:02:54.2]} 7... e6 {[%clk 0:02:28.8]} 8. e4 {[%clk 0:02:54]} 8...
Qd8 {[%clk 0:02:27.4]} 9. Be3 {[%clk 0:02:49.1]} 9... exd5 {[%clk 0:02:23.7]}
10. Qxd5 {[%clk 0:02:44.4]} 10... Nf6 {[%clk 0:02:19.8]} 11. Qb3 {[%clk
0:02:26.6]} 11... Bd6 {[%clk 0:02:04.3]} 12. Bc4 {[%clk 0:02:21]} 12... O-O
{[%clk 0:02:03.8]} 13. Ne2 {[%clk 0:02:20.7]} 13... Nc6 {[%clk 0:02:03.4]} 14.
Qd1 {[%clk 0:02:17.4]} 14... Qc7 {[%clk 0:02:00.3]} 15. Kf2 {[%clk 0:02:06]}
15... Be5 {[%clk 0:01:46.2]} 16. Na3 {[%clk 0:01:56.3]} 16... d6 {[%clk
0:01:38.9]} 17. Bd3 {[%clk 0:01:44.1]} 17... Rd8 {[%clk 0:01:24.9]} 18. Nc4
{[%clk 0:01:34]} 18... d5 {[%clk 0:01:23.7]} 19. exd5 {[%clk 0:01:28.9]} 19...
Nxd5 {[%clk 0:01:22]} 20. Bg5 {[%clk 0:01:22.6]} 20... Bf6 {[%clk 0:01:17.2]}
21. Bxf6 {[%clk 0:01:19]} 21... Nxf6 {[%clk 0:01:16.6]} 22. Qc2 {[%clk
0:01:19.4]} 22... b5 {[%clk 0:01:12.1]} 23. Ne3 {[%clk 0:01:19.3]} 23... c4
{[%clk 0:01:11.6]} 24. Bf5 {[%clk 0:01:13.6]} 24... Qb6 {[%clk 0:01:11.1]} 25.
Rad1 {[%clk 0:01:09.1]} 25... Re8 {[%clk 0:01:10.3]} 26. Nd4 {[%clk 0:01:07.4]}
26... Ne5 {[%clk 0:01:05.3]} 27. Rhf1 {[%clk 0:00:55.4]} 27... Bxf5 {[%clk
0:01:02.5]} 28. Nexf5 {[%clk 0:00:56.3]} 28... Nd3+ {[%clk 0:01:02.2]} 29. Kg1
{[%clk 0:00:56.3]} 29... g6 {[%clk 0:00:56.1]} 30. Ng3 {[%clk 0:00:55.9]} 30...
Rad8 {[%clk 0:00:56.4]} 31. b3 {[%clk 0:00:49.1]} 31... Nd5 {[%clk 0:00:53.2]}
32. Ne4 {[%clk 0:00:37.2]} 32... Ne3 {[%clk 0:00:51.5]} 33. Qd2 {[%clk
0:00:37.1]} 33... Nxd1 {[%clk 0:00:45.7]} 34. Rxd1 {[%clk 0:00:38]} 34... Rxd4
{[%clk 0:00:43.8]} 35. cxd4 {[%clk 0:00:37.4]} 35... Qxd4+ {[%clk 0:00:43.9]}
36. Kh1 {[%clk 0:00:37.4]} 36... f5 {[%clk 0:00:26.1]} 0-1

[Event "*** SCC Grand Prix: Titled Tuesday Blitz"]
[Site "Chess.com"]
[Date "2020.07.14"]
[Round "5"]
[White "AlanZhang"]
[Black "JesseKraai"]
[Result "0-1"]
[WhiteElo "2226"]
[BlackElo "2460"]
[TimeControl "180+1"]
[EndTime "10:56:04 PDT"]
[Termination "JesseKraai won on time"]

1. e4 {[%clk 0:03:00.9]} 1... e6 {[%clk 0:02:59.4]} 2. d4 {[%clk 0:03:00.3]}
2... d5 {[%clk 0:02:59.5]} 3. Nc3 {[%clk 0:03:00.2]} 3... Nf6 {[%clk 0:02:59.3]}
4. e5 {[%clk 0:03:00.6]} 4... Nfd7 {[%clk 0:02:59.5]} 5. Nce2 {[%clk 0:03:01.2]}
5... c5 {[%clk 0:02:59.8]} 6. c3 {[%clk 0:03:01.6]} 6... Nc6 {[%clk 0:03:00]} 7.
f4 {[%clk 0:03:01.8]} 7... cxd4 {[%clk 0:02:56.7]} 8. cxd4 {[%clk 0:03:01.3]}
8... Bb4+ {[%clk 0:02:56.7]} 9. Bd2 {[%clk 0:03:00.9]} 9... Qb6 {[%clk
0:02:55.4]} 10. Nf3 {[%clk 0:03:00.1]} 10... O-O {[%clk 0:02:51.3]} 11. Bc3
{[%clk 0:02:23.5]} 11... f6 {[%clk 0:02:46.9]} 12. Qd2 {[%clk 0:02:09.3]} 12...
fxe5 {[%clk 0:02:38.6]} 13. fxe5 {[%clk 0:02:08]} 13... Bxc3 {[%clk 0:01:56.8]}
14. Nxc3 {[%clk 0:02:04.7]} 14... Rxf3 {[%clk 0:01:50.5]} 15. gxf3 {[%clk
0:02:01.3]} 15... Nxd4 {[%clk 0:01:49.3]} 16. Bg2 {[%clk 0:01:31.2]} 16... Nxe5
{[%clk 0:01:43.2]} 17. O-O-O {[%clk 0:01:30.4]} 17... Nc4 {[%clk 0:01:24]} 18.
Nxd5 {[%clk 0:00:39.9]} 18... exd5 {[%clk 0:00:41.6]} 19. Qxd4 {[%clk
0:00:38.2]} 19... Ne3 {[%clk 0:00:40.8]} 20. Qxb6 {[%clk 0:00:12.1]} 20... axb6
{[%clk 0:00:39.3]} 21. Rdg1 {[%clk 0:00:06.4]} 21... Rxa2 {[%clk 0:00:30.5]} 22.
Kb1 {[%clk 0:00:05.2]} 22... Ra8 {[%clk 0:00:22.8]} 23. Bf1 {[%clk 0:00:05]}
23... Bf5+ {[%clk 0:00:20]} 24. Kc1 {[%clk 0:00:05]} 24... d4 {[%clk 0:00:16]}
25. Kd2 {[%clk 0:00:05.2]} 25... Ra2 {[%clk 0:00:15.4]} 26. Kc1 {[%clk
0:00:02.6]} 26... Ra1+ {[%clk 0:00:15.5]} 27. Kd2 {[%clk 0:00:02.7]} 27... Rd1+
{[%clk 0:00:15.4]} 28. Ke2 {[%clk 0:00:02.2]} 28... Rb1 {[%clk 0:00:15.3]} 29.
Kf2 {[%clk 0:00:02]} 29... Rxb2+ {[%clk 0:00:15.4]} 30. Kg3 {[%clk 0:00:01.8]}
30... Kf7 {[%clk 0:00:14.6]} 31. Ba6 {[%clk 0:00:01.2]} 31... bxa6 {[%clk
0:00:14.3]} 32. Rc1 {[%clk 0:00:01.5]} 32... Nc2 {[%clk 0:00:13.4]} 0-1

[Event "*** SCC Grand Prix: Titled Tuesday Blitz"]
[Site "Chess.com"]
[Date "2020.07.14"]
[Round "5"]
[White "joksijoksi"]
[Black "mitrabhaa"]
[Result "0-1"]
[WhiteElo "2389"]
[BlackElo "2600"]
[TimeControl "180+1"]
[EndTime "10:56:05 PDT"]
[Termination "mitrabhaa won on time"]

1. e4 {[%clk 0:03:00.9]} 1... c6 {[%clk 0:03:00]} 2. Nc3 {[%clk 0:02:57.2]} 2...
d5 {[%clk 0:03:00.9]} 3. d4 {[%clk 0:02:56.9]} 3... dxe4 {[%clk 0:03:00.9]} 4.
Nxe4 {[%clk 0:02:57.8]} 4... Nf6 {[%clk 0:03:01.5]} 5. Nxf6+ {[%clk 0:02:57.8]}
5... exf6 {[%clk 0:03:02.4]} 6. c3 {[%clk 0:02:56.4]} 6... Bd6 {[%clk
0:03:02.2]} 7. Bd3 {[%clk 0:02:56.8]} 7... O-O {[%clk 0:03:01.6]} 8. Qc2 {[%clk
0:02:57]} 8... Re8+ {[%clk 0:02:59.7]} 9. Be3 {[%clk 0:02:57.1]} 9... h5 {[%clk
0:02:58.9]} 10. h3 {[%clk 0:02:56]} 10... Nd7 {[%clk 0:02:57.9]} 11. Ne2 {[%clk
0:02:48.5]} 11... Nf8 {[%clk 0:02:55.9]} 12. O-O-O {[%clk 0:02:44.9]} 12... Be6
{[%clk 0:02:51.9]} 13. Kb1 {[%clk 0:02:41.5]} 13... b5 {[%clk 0:02:50.3]} 14. g4
{[%clk 0:02:25.5]} 14... h4 {[%clk 0:02:49.1]} 15. Nf4 {[%clk 0:02:16.7]} 15...
Bxf4 {[%clk 0:02:45.4]} 16. Bxf4 {[%clk 0:02:17.6]} 16... a5 {[%clk 0:02:45.1]}
17. Rdg1 {[%clk 0:01:51.2]} 17... Qd5 {[%clk 0:02:40]} 18. b3 {[%clk 0:01:36.5]}
18... a4 {[%clk 0:02:39.1]} 19. b4 {[%clk 0:01:36.9]} 19... Ng6 {[%clk
0:02:34.3]} 20. Be3 {[%clk 0:01:32.1]} 20... Qd7 {[%clk 0:02:27.1]} 21. Re1
{[%clk 0:01:14.6]} 21... Bd5 {[%clk 0:02:24.8]} 22. Rhg1 {[%clk 0:01:12.4]}
22... Re7 {[%clk 0:02:22]} 23. f4 {[%clk 0:00:57.4]} 23... Rae8 {[%clk
0:02:15.7]} 24. Bf5 {[%clk 0:00:54.6]} 24... Qd6 {[%clk 0:02:10.3]} 25. Qf2
{[%clk 0:00:53.1]} 25... Be4+ {[%clk 0:02:06.8]} 26. Bxe4 {[%clk 0:00:50.7]}
26... Rxe4 {[%clk 0:02:07.7]} 27. f5 {[%clk 0:00:50.3]} 27... Ne7 {[%clk
0:02:03.5]} 28. g5 {[%clk 0:00:47.6]} 28... Nd5 {[%clk 0:02:02.2]} 29. Bd2
{[%clk 0:00:46.7]} 29... Rxe1+ {[%clk 0:02:00.1]} 30. Rxe1 {[%clk 0:00:47.6]}
30... Rxe1+ {[%clk 0:01:59.3]} 31. Qxe1 {[%clk 0:00:47.7]} 31... fxg5 {[%clk
0:01:59.5]} 32. Qe8+ {[%clk 0:00:45.3]} 32... Kh7 {[%clk 0:01:57.8]} 33. Qxf7
{[%clk 0:00:45.6]} 33... Qf6 {[%clk 0:01:46.5]} 34. Qh5+ {[%clk 0:00:43.7]}
34... Qh6 {[%clk 0:01:41]} 35. Qg4 {[%clk 0:00:37.6]} 35... Nf6 {[%clk
0:01:24.1]} 36. Qxg5 {[%clk 0:00:36.2]} 36... Qxg5 {[%clk 0:01:24.5]} 37. Bxg5
{[%clk 0:00:36]} 37... Ne4 {[%clk 0:01:25.4]} 38. Bxh4 {[%clk 0:00:32.2]} 38...
Nxc3+ {[%clk 0:01:25]} 39. Kb2 {[%clk 0:00:29.4]} 39... Nd5 {[%clk 0:01:25.9]}
40. a3 {[%clk 0:00:19.7]} 40... Kg8 {[%clk 0:01:24.2]} 41. Bg5 {[%clk
0:00:17.9]} 41... Kf7 {[%clk 0:01:21.4]} 42. h4 {[%clk 0:00:18.2]} 42... Nb6
{[%clk 0:01:19.5]} 43. h5 {[%clk 0:00:06.5]} 43... Nc4+ {[%clk 0:01:19.5]} 44.
Ka2 {[%clk 0:00:06.9]} 44... Nd6 {[%clk 0:01:20]} 45. Kb2 {[%clk 0:00:06]} 45...
Nxf5 {[%clk 0:01:19.9]} 46. Kc3 {[%clk 0:00:03.8]} 46... Ke6 {[%clk 0:01:19.8]}
47. Bf4 {[%clk 0:00:01.9]} 47... Kd5 {[%clk 0:01:15.2]} 48. Be5 {[%clk
0:00:02.3]} 48... Ke6 {[%clk 0:01:12.5]} 49. Kd3 {[%clk 0:00:01.8]} 49... Kf7
{[%clk 0:01:11.4]} 50. Ke4 {[%clk 0:00:01.6]} 50... Ne7 {[%clk 0:01:11.9]} 51.
Kd3 {[%clk 0:00:01.2]} 51... Nd5 {[%clk 0:01:11.5]} 0-1